bitfinex/quotes_SOLUSD_20251216
["timestamp","ask_amount","ask_price","bid_price","bid_amount"]
[1765893565705,12.38695088,127.32,127.28,0.7]
[1765893566079,7.85484251,127.31,127.28,0.7]
[1765893566576,12.84695088,127.29,127.24,8.559113]
[1765893566798,12.84695088,127.29,127.25,0.7]
[1765893566969,12.38695088,127.29,127.25,0.7]
[1765893567168,0.46,127.3,127.24,0.7]
[1765893567390,12.38695088,127.28,127.24,0.7]
[1765893567588,27.49194878,127.31,127.24,12.38695088]
[1765893567768,27.49194878,127.31,127.26,7.8575672]
[1765893567974,20.24179339,127.31,127.26,7.85786804]
[1765893568183,12.38695088,127.3,127.26,0.7]
[1765893568381,12.38695088,127.3,127.27,0.7]
[1765893568798,12.38695088,127.3,127.24,32.03481181]
[1765893568799,12.38695088,127.3,127.26,0.7]
[1765893569095,12.38695088,127.3,127.27,0.7]
[1765893569469,12.38695088,127.31,127.27,7.85711831]
[1765893569672,20.90008318,127.34,127.28,0.7]
[1765893569869,20.23994286,127.34,127.29,0.7]
[1765893570074,48.06074557,127.39,127.29,0.7]
[1765893570075,7.85246257,127.35,127.31,0.7]
[1765893570295,20.23941345,127.35,127.31,0.7]
[1765893570467,12.38695088,127.34,127.31,0.7]
[1765893570673,7.85246257,127.35,127.31,0.7]
[1765893570871,20.23941345,127.35,127.31,0.7]
[1765893571094,20.23941345,127.35,127.3,8.55527127]
[1765893571095,12.38695088,127.34,127.3,8.55527127]
[1765893571277,7.85246257,127.35,127.3,7.85527127]
[1765893571481,20.23941345,127.35,127.31,0.7]
[1765893571994,12.38695088,127.34,127.31,0.7]
[1765893572201,20.23941345,127.35,127.31,8.55482229]
[1765893573078,20.23941345,127.35,127.32,0.7]
[1765893573284,27.47970672,127.37,127.31,7.85482229]
[1765893573485,27.93970672,127.37,127.31,8.55482229]
[1765893573706,27.93970672,127.37,127.32,7.8541033]
[1765893573707,12.38695088,127.36,127.32,7.8541033]
[1765893573887,12.38695088,127.36,127.32,8.5441033]
[1765893574087,12.38695088,127.36,127.32,0.69]
[1765893574283,12.38695088,127.36,127.32,7.85421371]
[1765893574489,12.38695088,127.36,127.33,0.69]
[1765893574789,39.8666576,127.37,127.33,0.69]
[1765893575092,66.73541842,127.37,127.26,21.85703612]
[1765893575305,20.24066764,127.33,127.29,0.69]
[1765893575605,7.85371676,127.33,127.3,0.69]
[1765893575806,12.84695088,127.32,127.27,0.69]
[1765893575990,7.85371676,127.33,127.27,0.69]
[1765893576309,12.38695088,127.32,127.27,0.69]
[1765893576505,12.38695088,127.32,127.28,0.69]
[1765893576829,40.33468947,127.33,127.28,0.69]
[1765893576989,12.38695088,127.32,127.28,0.69]
[1765893577195,7.85607667,127.29,127.24,8.54880427]
[1765893577395,7.85607667,127.29,127.25,0.69]
[1765893577705,20.09833579,127.31,127.26,0.69]
[1765893577706,7.85570637,127.3,127.26,0.69]
[1765893578405,7.85570637,127.3,127.27,0.69]
[1765893579320,7.8566939,127.28,127.21,0.69]
[1765893579512,12.38695088,127.25,127.21,0.69]
[1765893579700,12.38695088,127.26,127.21,0.69]
[1765893580209,0.46,127.27,127.21,0.69]
[1765893580384,27.49842865,127.28,127.22,12.38695088]
[1765893580588,27.49842865,127.28,127.21,7.86065012]
[1765893580589,7.85607667,127.29,127.23,0.69]
[1765893580786,12.39969149,127.28,127.24,0.69]
[1765893581015,12.39969149,127.27,127.24,0.69]
[1765893581214,8.31726723,127.28,127.21,7.86065012]
[1765893581513,27.95900198,127.28,127.23,0.69]
[1765893581691,12.39969149,127.27,127.23,0.69]
[1765893581891,7.85607667,127.29,127.22,0.69]
[1765893582089,7.85607667,127.29,127.26,0.69]
[1765893582398,7.85607667,127.29,127.24,0.69]
[1765893582399,20.25576816,127.29,127.24,0.69]
[1765893582605,12.39969149,127.28,127.24,0.69]
[1765893582810,7.85607667,127.29,127.24,13.08969149]
[1765893583014,7.85607667,127.29,127.25,0.69]
[1765893583312,39.89595984,127.29,127.24,0.69]
[1765893583516,7.85607667,127.29,127.25,0.69]
[1765893583887,15.48830804,127.29,127.25,0.69]
[1765893584086,7.85607667,127.29,127.25,0.69]
[1765893584283,0.46,127.35,127.28,7.63223137]
[1765893584488,7.63223137,127.33,127.29,0.69]
[1765893584689,13.5070912,127.35,127.29,0.69]
[1765893585026,7.63223137,127.34,127.29,0.69]
[1765893585327,13.0470912,127.35,127.29,0.69]
[1765893585328,7.63223137,127.33,127.29,0.69]
[1765893585487,7.63223137,127.31,127.27,0.69]
[1765893585691,0.46,127.33,127.27,0.69]
[1765893586017,0.46,127.33,127.27,8.54727488]
[1765893586214,7.63223137,127.31,127.27,0.69]
[1765893586714,7.63223137,127.28,127.25,0.69]
[1765893587016,7.63223137,127.29,127.25,0.69]
[1765893587226,7.63223137,127.28,127.23,0.69]
[1765893587519,7.85731122,127.27,127.23,0.69]
[1765893587819,7.85731122,127.27,127.24,0.69]
[1765893588116,7.85671607,127.28,127.24,0.69]
[1765893588907,15.48894744,127.28,127.24,0.69]
[1765893589406,35.59068219,127.28,127.24,0.69]
[1765893589609,35.13068219,127.28,127.23,0.69]
[1765893589817,35.13068219,127.28,127.23,7.85959526]
[1765893590119,7.85607667,127.29,127.25,0.69]
[1765893590319,15.48830804,127.29,127.25,0.69]
[1765893590496,8.6,127.28,127.25,0.69]
[1765893590702,8.35553776,127.3,127.26,0.69]
[1765893590898,7.63223137,127.29,127.24,15.49132964]
[1765893591098,16.23223137,127.29,127.25,0.69]
[1765893591309,16.23223137,127.29,127.21,0.69]
[1765893591310,15.49057276,127.26,127.21,0.69]
[1765893591501,7.85834139,127.26,127.22,0.69]
[1765893591838,43.73539438,127.26,127.22,0.69]
[1765893592018,36.56316301,127.26,127.21,0.69]
[1765893592228,7.63223137,127.25,127.21,0.69]
[1765893592933,7.63223137,127.25,127.22,0.69]
[1765893593101,7.63223137,127.25,127.21,0.69]
[1765893593302,15.49120239,127.25,127.17,61.1437288]
[1765893593700,0.68,127.21,127.17,0.2]
[1765893594000,0.68,127.2,127.17,0.2]
[1765893594631,13.7270912,127.16,127.1,8.06763877]
[1765893594812,13.7270912,127.16,127.12,7.86642158]
[1765893594998,8.6,127.16,127.11,7.86717046]
[1765893595199,0.68,127.15,127.1,0.2]
[1765893595411,8.6,127.16,127.11,0.69]
[1765893595606,7.63223137,127.14,127.1,0.89]
[1765893595815,0.68,127.15,127.1,0.2]
[1765893596013,27.52221435,127.17,127.11,0.69]
[1765893596195,7.63223137,127.13,127.1,0.89]
[1765893596398,8.6,127.13,127.1,0.2]
[1765893596618,7.63223137,127.12,127.09,0.69]
[1765893596839,16.23223137,127.13,127.09,0.69]
[1765893597000,7.63223137,127.12,127.08,3.14707807]
[1765893597332,0.68,127.12,127.08,2.45707807]
[1765893597510,21.35932257,127.09,127.08,2.28707807]
[1765893597835,21.35932257,127.09,126.93,23.46012029]
[1765893597836,0.68,127.03,126.93,23.64904812]
[1765893598139,13.7270912,127.03,126.91,13.0470912]
[1765893598301,0.68,127.02,126.94,7.63223137]
[1765893598496,7.63223137,126.96,126.88,8.58]
[1765893598799,13.0470912,126.99,126.9,19.69931692]
[1765893598800,8.6,126.98,126.9,19.69931692]
[1765893598999,8.6,127.02,126.94,7.63223137]
[1765893599217,0.68,127.02,126.92,27.57630044]
[1765893599417,0.68,127.02,126.87,0.99999999]
[1765893599595,0.68,127.01,126.88,0.99999999]
[1765893599800,0.68,126.98,126.86,27.5894687]
[1765893600025,9.28,126.97,126.87,0.69]
[1765893600227,9.28,126.97,126.88,0.69]
[1765893600421,8.6,126.97,126.91,0.69]
[1765893600702,0.68,126.96,126.89,7.63223137]
[1765893600901,8.6,126.97,126.91,7.63223137]
[1765893600902,0.68,126.97,126.91,7.63223137]
[1765893601225,27.55525982,127.02,126.86,67.00299542]
[1765893601226,0.68,127.02,126.94,13.7370912]
[1765893601411,0.68,127.02,126.95,7.63223137]
[1765893601613,8.31223137,127.02,126.96,0.69]
[1765893601811,0.68,127.02,126.96,0.69]
[1765893601995,0.68,127.02,126.94,80.00786005]
[1765893601996,0.68,127.06,126.99,7.63223137]
[1765893602200,0.99999999,127.14,127.02,8.32223137]
[1765893602414,7.63223137,127.07,127.0,0.69]
[1765893602622,8.6,127.13,127.03,7.63223137]
[1765893602821,0.68,127.1,127.05,7.63223137]
[1765893603007,0.68,127.13,127.09,7.63223137]
[1765893603216,0.68,127.16,127.06,0.69]
[1765893603415,0.68,127.17,127.07,40.59096465]
[1765893603624,8.6,127.18,127.07,40.59096465]
[1765893603625,8.6,127.18,127.13,7.63223137]
[1765893603833,0.67,127.19,127.14,7.63223137]
[1765893604038,7.63223137,127.19,127.13,7.63223137]
[1765893604238,8.53111746,127.21,127.13,7.63223137]
[1765893604438,8.53111746,127.21,127.11,8.6]
[1765893604439,7.63223137,127.2,127.11,17.40994492]
[1765893604744,7.63223137,127.2,127.14,7.63223137]
[1765893604918,7.63223137,127.2,127.15,0.69]
[1765893605117,7.63223137,127.21,127.15,8.32223137]
[1765893605315,7.85978149,127.23,127.17,0.69]
[1765893605533,7.85920911,127.24,127.13,7.8654814]
[1765893605846,0.67,127.19,127.11,0.69]
[1765893606225,8.6,127.23,127.16,7.63223137]
[1765893606427,8.52920911,127.24,127.19,0.69]
[1765893606741,0.67,127.27,127.2,7.63223137]
[1765893606945,0.67,127.29,127.22,7.63223137]
[1765893607123,8.52545954,127.3,127.23,0.69]
[1765893607334,8.52545954,127.3,127.19,8.80994492]
[1765893607335,0.67,127.29,127.21,0.69]
[1765893607542,15.48969262,127.27,127.22,0.69]
[1765893608084,7.63223137,127.27,127.22,0.69]
[1765893608339,7.63223137,127.26,127.22,0.69]
[1765893608963,7.63223137,127.27,127.22,0.69]
[1765893609433,7.63223137,127.26,127.22,0.69]
[1765893609622,7.63223137,127.26,127.22,7.86023029]
[1765893609824,7.63223137,127.26,127.22,8.55023029]
[1765893610233,7.63223137,127.26,127.23,0.69]
[1765893610412,7.63223137,127.25,127.2,8.6]
[1765893610617,7.85551327,127.3,127.22,27.51131817]
[1765893610816,7.85551327,127.3,127.23,0.69]
[1765893611048,7.63223137,127.28,127.23,0.69]
[1765893611219,7.85551327,127.3,127.23,0.69]
[1765893611419,7.63223137,127.29,127.25,0.69]
[1765893611634,8.62361484,127.33,127.25,0.69]
[1765893611856,7.63223137,127.32,127.26,0.69]
[1765893612149,7.63223137,127.31,127.26,0.69]
[1765893612348,7.95305368,127.34,127.28,0.69]
[1765893612530,0.67,127.28,127.17,0.1]
[1765893612730,0.67,127.25,127.18,0.69]
[1765893613037,7.63223137,127.19,127.17,0.79]
[1765893613245,7.63223137,127.22,127.17,0.79]
[1765893613547,7.85854616,127.25,127.18,8.55264172]
[1765893613858,17.40994492,127.29,127.24,0.69]
[1765893613859,7.63223137,127.29,127.24,0.69]
[1765893614402,7.63223137,127.27,127.24,0.69]
[1765893614662,0.67,127.31,127.23,7.63223137]
[1765893614970,0.67,127.3,127.25,7.63223137]
[1765893615127,0.67,127.3,127.24,7.63223137]
[1765893615456,27.49626835,127.29,127.24,7.63223137]
[1765893615664,7.85607667,127.29,127.24,8.32223137]
[1765893615871,8.52558743,127.3,127.25,7.63223137]
[1765893616364,19.6374864,127.31,127.24,7.85907177]
[1765893616365,7.85484251,127.31,127.28,7.63223137]
[1765893616961,7.85484251,127.31,127.21,0.69]
[1765893616962,0.67,127.28,127.21,0.69]
[1765893617280,8.30223137,127.27,127.21,7.63223137]
[1765893617460,7.85792865,127.26,127.21,8.32223137]
[1765893617661,13.0470912,127.29,127.25,7.63223137]
[1765893617862,8.52626033,127.29,127.26,7.63223137]
[1765893618058,8.52626033,127.29,127.2,0.69]
[1765893618059,0.67,127.28,127.2,0.69]
[1765893618274,40.54354321,127.29,127.25,8.32223137]
[1765893618465,40.54354321,127.29,127.25,0.69]
[1765893618666,20.90335153,127.29,127.25,7.63223137]
[1765893618864,7.63223137,127.28,127.19,0.69]
[1765893619102,0.67,127.26,127.21,7.63223137]
[1765893619265,0.67,127.26,127.21,0.69]
[1765893619460,7.85854616,127.25,127.21,8.32223137]
[1765893620195,7.8566939,127.28,127.24,7.63223137]
[1765893620364,27.49842865,127.28,127.22,0.69]
[1765893620692,28.16842865,127.28,127.23,0.69]
[1765893620900,28.16842865,127.28,127.21,8.55059343]
[1765893621109,28.16842865,127.28,127.22,8.32223137]
[1765893621306,28.16842865,127.28,127.23,0.69]
[1765893621519,28.16842865,127.28,127.19,8.80994492]
[1765893621520,35.80066002,127.28,127.19,8.80994492]
[1765893621792,35.80066002,127.28,127.18,8.6]
[1765893621793,28.16842865,127.28,127.22,7.63223137]
[1765893622215,0.67,127.27,127.22,7.63223137]
[1765893622513,0.67,127.27,127.22,8.32223137]
[1765893622997,8.30223137,127.27,127.2,7.86140642]
[1765893623204,0.67,127.27,127.21,7.63223137]
[1765893623503,7.8603993,127.22,127.17,8.55332771]
[1765893623736,7.8593081,127.24,127.2,8.32223137]
[1765893624015,0.67,127.19,127.15,0.1]
[1765893624306,0.67,127.16,127.11,0.69]
[1765893624503,7.63223137,127.17,127.11,0.69]
[1765893624676,8.30223137,127.17,127.11,0.69]
[1765893625001,8.30223137,127.14,127.08,7.63223137]
[1765893625183,16.90223137,127.14,127.08,0.69]
[1765893625388,9.27,127.14,127.08,8.32223137]
[1765893625573,9.27,127.14,127.09,7.63223137]
[1765893625574,7.86596397,127.13,127.09,7.63223137]
[1765893625778,7.86596397,127.13,127.09,8.32223137]
[1765893626091,7.86596397,127.13,127.09,0.69]
[1765893626279,7.86596397,127.13,127.09,8.32223137]
[1765893626677,7.86557473,127.14,127.09,0.69]
[1765893626876,7.8647267,127.15,127.12,7.63223137]
[1765893627092,7.8647267,127.15,127.09,28.22948496]
[1765893627301,16.4642853,127.16,127.12,7.63223137]
[1765893627498,8.6,127.16,127.12,7.63223137]
[1765893627700,20.91081171,127.17,127.13,7.63223137]
[1765893627923,0.1,127.2,127.1,8.80994492]
[1765893628224,0.1,127.2,127.09,28.22948496]
[1765893628225,27.51572327,127.2,127.09,28.22948496]
[1765893628391,8.30223137,127.17,127.11,7.63223137]
[1765893628582,7.8647267,127.15,127.12,7.63223137]
[1765893628776,7.8647267,127.15,127.09,8.55838574]
[1765893628777,7.8647267,127.15,127.11,7.63223137]
[1765893628981,7.8647267,127.15,127.09,8.55804466]
[1765893628982,28.19654345,127.15,127.1,8.32223137]
[1765893629588,13.0470912,127.16,127.14,8.32223137]
[1765893629883,7.86287152,127.18,127.13,0.69]
[1765893630116,7.86287152,127.18,127.14,0.69]
[1765893630315,27.52005032,127.18,127.14,8.32223137]
[1765893630681,7.86287152,127.18,127.14,7.63223137]
[1765893630898,7.86287152,127.18,127.11,19.66717519]
[1765893630899,35.82228169,127.18,127.12,7.63223137]
[1765893631089,8.30223137,127.16,127.08,8.55892259]
[1765893631289,16.90223137,127.15,127.09,7.63223137]
[1765893631513,9.27,127.15,127.09,15.50065977]
[1765893631716,9.27,127.15,127.09,0.69]
[1765893632036,8.6,127.15,127.1,15.49997894]
[1765893632181,9.27,127.15,127.1,16.18997894]
[1765893632578,9.27,127.15,127.11,15.49926446]
[1765893632820,17.13499648,127.15,127.11,7.63223137]
[1765893633115,28.19681323,127.15,127.1,7.63223137]
[1765893633328,35.1590446,127.15,127.08,0.69]
[1765893633527,8.30223137,127.13,127.07,7.63223137]
[1765893633714,16.91223137,127.12,127.06,16.17212381]
[1765893634020,8.31223137,127.11,127.05,15.60297496]
[1765893634220,0.68,127.11,127.05,15.60297496]
[1765893634522,8.6,127.12,127.07,7.63223137]
[1765893634720,7.86720163,127.11,127.07,0.65]
[1765893634909,8.54720163,127.11,127.06,8.28223137]
[1765893635237,36.81520572,127.11,127.06,8.52009856]
[1765893635532,16.46720163,127.11,127.07,16.15190571]
[1765893635732,17.14720163,127.11,127.05,19.67660801]
[1765893635956,0.68,127.1,127.04,7.87137357]
[1765893636091,0.68,127.08,127.03,8.38223137]
[1765893636291,8.6,127.1,127.05,7.63223137]
[1765893636518,0.68,127.1,127.06,7.63223137]
[1765893636714,92.13824268,127.1,127.07,7.63223137]
[1765893637100,84.26986488,127.1,127.07,0.65]
[1765893637305,84.26986488,127.1,127.08,7.63223137]
[1765893637513,84.26986488,127.1,127.08,8.28223137]
[1765893637712,84.26986488,127.1,127.09,7.63223137]
[1765893637914,7.86699485,127.12,127.09,7.63223137]
[1765893638124,7.86699485,127.12,127.08,8.28223137]
[1765893638896,28.21345174,127.12,127.06,7.87004903]
[1765893639112,28.21345174,127.12,127.07,7.63223137]
[1765893639113,0.68,127.11,127.07,7.63223137]
[1765893639723,0.68,127.11,127.06,7.63223137]
[1765893640024,0.68,127.08,127.03,7.63223137]
[1765893640330,0.68,127.08,127.04,15.50354832]
[1765893640331,8.6,127.08,127.04,15.50354832]
[1765893640505,9.28,127.08,127.04,7.63223137]
[1765893640826,7.86967813,127.07,127.04,7.63223137]
[1765893641016,7.86967813,127.07,127.03,7.87196239]
[1765893641017,7.86967813,127.07,127.03,16.15419376]
[1765893641218,16.46928256,127.08,127.04,8.28223137]
[1765893641416,7.86928256,127.08,127.04,8.28223137]
[1765893641721,28.94853226,127.11,127.06,8.28223137]
[1765893641923,8.6,127.11,127.08,0.65]
[1765893642128,16.46743532,127.11,127.07,7.63223137]
[1765893642329,16.46743532,127.11,127.07,8.28223137]
[1765893642500,7.86679101,127.12,127.09,8.28223137]
[1765893642699,7.86679101,127.12,127.04,27.55026644]
[1765893642700,7.86561233,127.14,127.11,7.63223137]
[1765893643323,16.1778437,127.14,127.08,7.63223137]
[1765893643500,7.86561233,127.14,127.1,13.08338409]
[1765893643701,27.52897555,127.14,127.11,12.43338409]
[1765893643911,27.52897555,127.14,127.1,13.08338409]
[1765893644319,7.8647267,127.15,127.12,13.08338409]
[1765893644625,13.11338409,127.14,127.08,12.43338409]
[1765893644834,7.86658275,127.12,127.08,12.43338409]
[1765893645233,0.68,127.11,127.07,12.43338409]
[1765893645526,0.68,127.11,127.06,13.08338409]
[1765893645729,13.11338409,127.09,127.03,13.08338409]
[1765893645928,0.68,127.09,127.01,0.1]
[1765893646227,0.68,127.07,127.01,13.08338409]
[1765893646426,9.28,127.06,127.01,13.08338409]
[1765893646627,9.28,127.06,127.01,20.95659962]
[1765893646927,9.28,127.06,127.02,13.08338409]
[1765893646928,7.87091696,127.05,127.02,13.08338409]
[1765893647128,8.6,127.06,127.03,13.08338409]
[1765893647330,29.61519689,127.1,127.03,0.65]
[1765893647504,84.94986488,127.09,127.04,12.43338409]
[1765893647710,84.94986488,127.09,127.05,12.43338409]
[1765893647911,84.26986488,127.09,127.06,13.08338409]
[1765893648102,84.26986488,127.08,127.06,13.08338409]
[1765893648430,84.26986488,127.08,127.05,0.65]
[1765893648634,84.26986488,127.08,127.05,12.43338409]
[1765893648820,84.26986488,127.08,127.04,0.65]
[1765893649021,7.86967813,127.07,127.04,13.08338409]
[1765893649202,7.86967813,127.07,126.99,51.80522248]
[1765893649405,7.86967813,127.07,127.04,13.08338409]
[1765893649638,7.86967813,127.07,127.04,12.43338409]
[1765893649834,7.86967813,127.07,127.04,12.44294994]
[1765893650325,7.86967813,127.07,127.05,12.44294994]
[1765893651026,7.86967813,127.07,127.04,8.52153112]
[1765893651027,8.5492967,127.08,127.04,12.44294994]
[1765893652135,17.1492967,127.08,127.04,13.09294994]
[1765893652308,17.1492967,127.08,127.04,20.96444169]
[1765893652635,17.1492967,127.08,127.04,13.09294994]
[1765893653238,0.68,127.07,126.99,0.1]
[1765893653441,0.68,127.04,126.94,0.65]
[1765893653617,13.7270912,127.01,126.94,12.44294994]
[1765893653820,13.7270912,127.01,126.93,0.65]
[1765893653821,9.28,127.0,126.93,0.65]
[1765893654227,0.68,126.99,126.93,0.65]
[1765893654538,8.6,126.99,126.93,0.65]
[1765893654701,8.6,126.99,126.97,12.44294994]
[1765893654902,9.28,127.0,126.94,0.65]
[1765893655108,7.87463579,126.99,126.96,12.44294994]
[1765893655729,16.47463579,126.99,126.95,13.09294994]
[1765893655932,16.47463579,126.99,126.95,0.65]
[1765893656301,16.47463579,126.99,126.95,13.09294994]
[1765893656524,36.16122528,126.99,126.93,8.52815246]
[1765893656810,0.68,126.98,126.93,0.65]
[1765893657011,0.68,126.98,126.93,13.09294994]
[1765893657012,13.12294994,126.98,126.93,13.09294994]
[1765893657416,40.00417522,126.99,126.94,13.09294994]
[1765893657613,49.28417522,126.99,126.94,12.44294994]
[1765893657831,12.44294994,126.98,126.93,12.44294994]
[1765893658018,13.12294994,126.98,126.93,13.09294994]
[1765893658323,7.87535164,126.98,126.95,12.44294994]
[1765893658806,36.1634915,126.98,126.94,13.09294994]
[1765893659236,36.1634915,126.98,126.94,0.65]
[1765893659423,49.28644144,126.98,126.93,13.09294994]
[1765893659620,12.44294994,126.97,126.92,12.44294994]
[1765893659818,49.2105827,126.98,126.82,0.2]
[1765893659819,13.12294994,126.93,126.82,0.2]
[1765893660026,12.44294994,126.91,126.86,12.44294994]
[1765893660235,7.88072846,126.9,126.86,8.53268914]
[1765893660434,0.68,126.89,126.82,9.00994492]
[1765893660613,0.68,126.89,126.82,0.2]
[1765893660614,12.44294994,126.86,126.82,0.2]
[1765893660816,13.0470912,126.87,126.82,0.2]
[1765893661137,16.50072846,126.9,126.86,12.44294994]
[1765893661320,17.18072846,126.9,126.82,8.80994492]
[1765893661522,0.68,126.89,126.82,27.59806818]
[1765893661834,0.68,126.88,126.82,6.88508916]
[1765893662366,12.44294994,126.86,126.8,7.88625703]
[1765893662652,0.68,126.81,126.76,2.80235855]
[1765893662939,13.0470912,126.82,126.76,2.80235855]
[1765893662940,13.7270912,126.8,126.76,2.80235855]
[1765893663136,8.62,126.79,126.76,2.80235855]
[1765893663440,0.68,126.78,126.76,2.80235855]
[1765893664025,0.7,126.86,126.76,2.80235855]
[1765893664217,8.58456989,126.83,126.79,12.44294994]
[1765893664418,0.7,126.82,126.77,7.88807467]
[1765893664617,0.7,126.82,126.76,3.46235855]
[1765893664618,21.06294994,126.89,126.82,0.66]
[1765893664833,0.7,126.88,126.82,0.66]
[1765893665041,21.06294994,126.9,126.82,0.66]
[1765893665221,0.7,126.87,126.82,0.66]
[1765893665430,8.62,126.87,126.8,0.66]
[1765893665625,0.7,126.86,126.8,0.66]
[1765893666036,13.14294994,126.86,126.82,12.44294994]
[1765893666220,0.7,126.92,126.85,12.44294994]
[1765893666541,27.57642609,126.92,126.87,12.44294994]
[1765893666720,0.7,126.91,126.84,0.66]
[1765893667235,8.62,126.93,126.9,12.44294994]
[1765893667437,0.7,126.98,126.9,0.66]
[1765893667623,0.7,126.94,126.86,8.62]
[1765893667826,13.14294994,126.93,126.88,12.44294994]
[1765893668016,0.7,126.93,126.87,0.66]
[1765893668216,7.87897888,126.92,126.87,0.66]
[1765893668433,0.7,126.91,126.85,8.6]
[1765893668656,27.57642609,126.92,126.85,8.6]
[1765893668827,27.57642609,126.92,126.85,16.48298184]
[1765893669144,8.57897888,126.92,126.88,12.44294994]
[1765893669343,21.02150183,126.93,126.86,0.66]
[1765893669641,0.7,126.92,126.86,0.66]
[1765893669849,7.87711697,126.95,126.89,7.88080582]
[1765893670025,8.57711697,126.95,126.89,28.24291]
[1765893670345,40.71285934,126.95,126.89,0.66]
[1765893670649,40.71285934,126.95,126.85,8.6]
[1765893670650,13.14294994,126.94,126.9,12.44294994]
[1765893670851,13.14294994,126.94,126.88,12.44294994]
[1765893670852,0.7,126.94,126.88,12.44294994]
[1765893671068,0.7,126.92,126.86,0.66]
[1765893671361,21.6670912,126.94,126.89,12.44294994]
[1765893671527,0.7,126.93,126.89,12.44294994]
[1765893671733,7.87711697,126.95,126.91,12.44294994]
[1765893671949,13.14294994,126.94,126.89,0.66]
[1765893672237,8.5787533,126.93,126.89,12.44294994]
[1765893672558,8.5787533,126.93,126.88,7.88130329]
[1765893672756,8.5787533,126.93,126.85,7.88321704]
[1765893672757,12.44294994,126.91,126.85,7.88321704]
[1765893672959,13.14294994,126.87,126.8,8.62]
[1765893673269,12.44294994,126.86,126.81,13.10294994]
[1765893673559,0.7,126.85,126.81,12.44294994]
[1765893673953,0.7,126.85,126.8,16.50631068]
[1765893674159,13.14294994,126.85,126.8,9.28]
[1765893674360,13.14294994,126.85,126.78,19.7189131]
[1765893674361,21.02689822,126.84,126.78,7.88750987]
[1765893674542,21.02689822,126.84,126.77,7.88822246]
[1765893674543,0.7,126.82,126.77,7.88822246]
[1765893674748,8.62,126.88,126.76,2.80235855]
[1765893674749,19.69776484,126.92,126.81,24.88589988]
[1765893675062,0.7,126.92,126.82,21.85703612]
[1765893675268,12.44294994,126.9,126.82,8.80994492]
[1765893675463,0.7,126.9,126.85,12.44294994]
[1765893675631,0.7,126.9,126.82,8.80994492]
[1765893675833,0.7,126.9,126.8,88.70178387]
[1765893676032,0.7,126.9,126.86,12.44294994]
[1765893676263,0.7,126.84,126.78,19.71879362]
[1765893676636,12.44294994,126.81,126.76,2.80235855]
[1765893676946,36.21164366,126.85,126.74,0.11]
[1765893676947,13.0470912,126.77,126.74,0.11]
[1765893677265,13.0470912,126.73,126.69,0.2]
[1765893677561,12.44294994,126.7,126.61,8.55778687]
[1765893677743,21.06294994,126.72,126.61,0.66]
[1765893677942,8.62,126.72,126.62,8.55744217]
[1765893678132,12.44294994,126.65,126.59,7.89948193]
[1765893678332,7.89577575,126.65,126.56,20.4119384]
[1765893678532,27.63521514,126.65,126.54,0.66]
[1765893678759,13.0470912,126.6,126.5,7.90513833]
[1765893678940,12.44294994,126.57,126.5,7.90513833]
[1765893679151,13.0470912,126.59,126.48,7.90582437]
[1765893679152,13.0470912,126.55,126.48,7.90582437]
[1765893679346,13.0470912,126.49,126.44,2.84763902]
[1765893679669,13.77271241,126.6,126.46,0.66]
[1765893679846,8.80994492,126.55,126.46,0.66]
[1765893680156,8.62,126.56,126.46,0.66]
[1765893680367,8.62,126.59,126.5,0.66]
[1765893680530,17.42994492,126.61,126.53,0.66]
[1765893680734,17.42994492,126.6,126.53,0.66]
[1765893681034,7.8976465,126.62,126.53,0.66]
[1765893681430,36.25085181,126.67,126.55,0.66]
[1765893681834,13.0470912,126.64,126.57,0.66]
[1765893682133,13.0470912,126.64,126.56,0.66]
[1765893682335,7.89702282,126.63,126.56,0.66]
[1765893683057,13.0470912,126.59,126.49,8.80994492]
[1765893683354,8.80994492,126.61,126.47,19.76621765]
[1765893683558,13.0470912,126.59,126.54,13.77271241]